fUSD/lending_fUSD_20260401
["ID","MTS","AMOUNT","RATE_DAILY","PERIOD"]
[419181226,1775008264959,-151.0,0.00027942,7]
[419181227,1775008264968,-1420.366302,0.00027942,7]
[419181228,1775008264978,-505.347916,0.000329,11]
[419181229,1775008264987,-469.13339593,0.00033,120]
[419181230,1775008264999,-3723.53896122,0.00033,120]
[419181231,1775008265028,-151.0,0.00015971,2]
[419181232,1775008265038,-267.8,0.00033,120]
[419181233,1775008265048,-752.30137897,0.00033,120]
[419181234,1775008336166,-273.0,8.614e-05,2]
[419181235,1775008336191,-500.0,8.614e-05,2]
[419181236,1775008336215,-321.06067456,8.898e-05,2]
[419181237,1775008336238,-300.0,9.181e-05,2]
[419181238,1775008336263,-600.0,9.471e-05,2]
[419181239,1775008336287,-300.0,9.475e-05,2]
[419181240,1775008336313,-815.93932544,9.476e-05,2]
[419181244,1775008383371,1300.0,8.312e-05,2]
[419181250,1775008591883,248.4285,0.000128,12]
[419181251,1775008592086,319.7103,0.000141,17]
[419181252,1775008663534,248.3635,0.000128,12]
[419181253,1775008663751,319.5848,0.000141,17]
[419181254,1775008743280,248.2984,0.000128,12]
[419181255,1775008743510,319.4591,0.000141,17]
[419181256,1775008814631,248.2331,0.000128,12]
[419181257,1775008814855,319.3331,0.000141,17]
[419181258,1775008886313,248.1677,0.000127,12]
[419181259,1775008886353,319.2069,0.000141,17]
[419181263,1775009021357,248.1021,0.000128,12]
[419181264,1775009021564,268.15217783,0.000141,17]
[419181268,1775009248119,-193.2892073,8.583e-05,2]
[419181269,1775009350095,-86.2007927,8.583e-05,2]
[419181270,1775009350116,-273.0,8.583e-05,2]
[419181271,1775009350136,-130.7992073,8.875e-05,2]
[419181272,1775009362575,465.57,8.309e-05,2]
[419181294,1775009432694,-277.0,8.875e-05,2]
[419181295,1775009432703,-119.2007927,8.875e-05,2]
[419181296,1775009432712,-250.0,9.077e-05,2]
[419181297,1775009432721,-505.92514299,9.121e-05,2]
[419181298,1775009432730,-700.0,9.129e-05,2]
[419181299,1775009432739,-500.0,9.168e-05,2]
[419181300,1775009432748,-500.0,9.168e-05,2]
[419181301,1775009432757,-250.0,9.441e-05,2]
[419181302,1775009432766,-4327.02636554,9.5e-05,3]
[419181303,1775009432777,-3135.87063297,9.5e-05,3]
[419181304,1775009432788,-314.57995572,9.5e-05,3]
[419181305,1775009432851,-1513.58232096,9.5e-05,3]
[419181306,1775009432862,-5080.17842226,9.5e-05,3]
[419181307,1775009432872,-5880.0,9.5e-05,3]
[419181308,1775009432883,-1300.0,9.5e-05,3]
[419181309,1775009432894,-3250.0,9.5e-05,3]
[419181310,1775009432905,-301.48251273,9.5e-05,3]
[419181311,1775009432917,-224643.8718956,9.5e-05,3]
[419181312,1775009432926,-1200.0,9.775e-05,2]
[419181313,1775009432938,-4601.573207,9.776e-05,2]
[419181314,1775009432947,-300.0,9.863e-05,2]
[419181315,1775009432957,-300.0,9.863e-05,2]
[419181316,1775009432967,-886.12,9.864e-05,2]
[419181317,1775009432976,-1200.0,9.926e-05,2]
[419181318,1775009432985,-150.0,0.0001,2]
[419181319,1775009432994,-1350.80165144,0.0001,2]
[419181320,1775009433003,-491.1024616,0.00010548,2]
[419181321,1775009433013,-1680.0,0.00010753,2]
[419181322,1775009433022,-420.0,0.00010849,2]
[419181323,1775009433031,-5867.65943792,0.00011,2]
[419181325,1775009433041,-627.0,0.00011056,2]
[419181327,1775009433050,-1902.0,0.00011078,2]
[419181329,1775009433059,-192.8894,0.000114,7]
[419181331,1775009433068,-1846.11,0.00011507,2]
[419181333,1775009433078,-195.0,0.00011553,2]
[419181334,1775009433087,-494.25,0.00011561,2]
[419181335,1775009433097,-2351.0,0.00011828,2]
[419181336,1775009433107,-150.0,0.0001189,2]
[419181337,1775009433116,-329.0,0.00011934,2]
[419181338,1775009433126,-494.25,0.00012169,2]
[419181339,1775009433137,-808.23,0.00012196,2]
[419181340,1775009433146,-1301240.05748956,0.00012434,2]
[419181341,1775009433190,-10300.29639889,0.00012434,2]
[419181342,1775009433202,-625.6194234,0.00012434,2]
[419181343,1775009433214,-16657.14660448,0.00012434,2]
[419181344,1775009433225,-1142.64297778,0.00012434,2]
[419181345,1775009433323,-3401.21383875,0.00012434,2]
[419181346,1775009433335,-278.617552,0.00012434,2]
[419181347,1775009433346,-924.05253866,0.00012434,2]
[419181348,1775009433356,-622.24371639,0.00012434,2]
[419181349,1775009433392,-1120.8077338,0.00012434,2]
[419181350,1775009433403,-817.79588592,0.00012434,2]
[419181365,1775009441527,-21.47657859,9.499e-05,2]
[419181366,1775009441878,-478.52342141,9.499e-05,2]
[419181367,1775009441888,-500.0,0.00012433,2]
[419181368,1775009441897,-189.44544298,0.00012433,2]
[419181369,1775009441906,-500.0,0.00012433,2]
[419181370,1775009441916,-203.51421291,0.00012433,2]
[419181371,1775009441926,-178.19091149,0.00012433,2]
[419181372,1775009441935,-580.25604531,0.00012433,2]
[419181373,1775009441945,-500.0,0.00012433,2]
[419181374,1775009441954,-500.0,0.00012433,2]
[419181375,1775009441964,-438.75130453,0.00012433,2]
[419181376,1775009441994,-61.24869547,0.00012433,2]
[419181377,1775009442003,-7426.59512592,0.00012434,2]
[419181378,1775009442025,-1155442.91071445,0.00012434,2]
[419181379,1775009442034,-2000.0,0.00012534,2]
[419181380,1775009442045,-740.84,0.0001259,2]
[419181381,1775009442054,-224.81,0.00012646,3]
[419181382,1775009442064,-386.7,0.00012667,2]
[419181383,1775009442074,-163.12,0.00012695,2]
[419181384,1775009442082,-494.25,0.00012777,2]
[419181385,1775009442092,-248.0423,0.000128,12]
[419181386,1775009442101,-3292.0,0.00013011,2]
[419181387,1775009442111,-503.0,0.00013111,2]
[419181388,1775009442121,-503.0,0.00013111,2]
[419181389,1775009442130,-1818.37,0.00013193,2]
[419181390,1775009442139,-494.25,0.00013386,2]
[419181391,1775009442149,-210.95,0.00013459,2]
[419181392,1775009442159,-1000.0,0.000135,2]
[419181393,1775009442169,-500.0,0.00013673,2]
[419181394,1775009442179,-2931.88581981,0.00013697,2]
[419181395,1775009442189,-500.0,0.00013698,2]
[419181396,1775009442198,-500.0,0.00013698,2]
[419181397,1775009442207,-500.0,0.00013698,2]
[419181398,1775009442216,-500.0,0.00013698,2]
[419181399,1775009442225,-500.0,0.00013698,2]
[419181400,1775009442235,-500.0,0.00013698,2]
[419181401,1775009442244,-500.0,0.00013698,2]
[419181402,1775009442254,-500.0,0.00013698,2]
[419181403,1775009442264,-500.0,0.00013698,2]
[419181404,1775009442273,-500.0,0.00013698,2]
[419181405,1775009442282,-350.37058547,0.00013698,2]
[419181406,1775009442291,-500.0,0.00013698,2]
[419181407,1775009442300,-500.0,0.00013698,2]
[419181408,1775009442309,-500.0,0.00013698,2]
[419181409,1775009442318,-500.0,0.00013698,2]
[419181410,1775009442327,-500.0,0.00013698,2]
[419181411,1775009442336,-500.0,0.00013698,2]
[419181412,1775009442345,-500.0,0.00013698,2]
[419181413,1775009442354,-618.03329484,0.00013698,2]
[419181414,1775009442363,-553.83763425,0.00013698,2]
[419181415,1775009442372,-500.0,0.00013698,2]
[419181416,1775009442381,-552.33620277,0.00013698,2]
[419181417,1775009442390,-516.53757306,0.00013698,2]
[419181418,1775009442399,-500.0,0.00013698,2]
[419181419,1775009442408,-500.0,0.00013698,2]
[419181420,1775009442417,-500.0,0.00013698,2]
[419181421,1775009442427,-500.0,0.00013698,2]
[419181422,1775009442437,-500.0,0.00013698,2]
[419181423,1775009442447,-513.17019501,0.00013698,2]
[419181424,1775009442458,-500.0,0.00013698,2]
[419181425,1775009442467,-500.0,0.00013698,2]
[419181426,1775009442477,-500.0,0.00013698,2]
[419181427,1775009442486,-403.21129489,0.00013698,2]
[419181428,1775009442495,-500.0,0.00013698,2]
[419181429,1775009442505,-500.0,0.00013698,2]
[419181430,1775009442514,-500.0,0.00013698,2]
[419181431,1775009442523,-500.0,0.00013698,2]
[419181432,1775009442532,-500.0,0.00013698,2]
[419181433,1775009442542,-500.0,0.00013698,2]
[419181434,1775009442550,-500.0,0.00013698,2]
[419181435,1775009442559,-500.0,0.00013698,2]
[419181436,1775009442569,-602.94613396,0.00013698,2]
[419181437,1775009442578,-500.0,0.00013698,2]
[419181438,1775009442587,-500.0,0.00013698,2]
[419181439,1775009442597,-509.51900798,0.00013698,2]
[419181440,1775009442606,-500.0,0.00013698,2]
[419181441,1775009442615,-500.0,0.00013698,2]
[419181442,1775009442625,-500.0,0.00013698,2]
[419181443,1775009442634,-500.0,0.00013698,2]
[419181444,1775009442644,-500.0,0.00013698,2]
[419181445,1775009442653,-567.75072671,0.00013698,2]
[419181446,1775009442662,-500.0,0.00013698,2]
[419181447,1775009442672,-500.0,0.00013698,2]
[419181448,1775009442680,-500.0,0.00013698,2]
[419181449,1775009442690,-500.0,0.00013698,2]
[419181450,1775009442699,-500.0,0.00013698,2]
[419181451,1775009442708,-507.98474508,0.00013698,2]
[419181452,1775009442718,-500.0,0.00013698,2]
[419181453,1775009442728,-500.0,0.00013698,2]
[419181454,1775009442737,-500.0,0.00013698,2]
[419181455,1775009442746,-500.0,0.00013698,2]
[419181456,1775009442755,-500.0,0.00013698,2]
[419181457,1775009442764,-490.0,0.00013698,2]
[419181458,1775009442773,-500.0,0.00013698,2]
[419181459,1775009442783,-212.34445911,0.00013698,2]
[419181460,1775009442793,-500.0,0.00013698,2]
[419181461,1775009442803,-500.0,0.00013698,2]
[419181462,1775009442812,-500.0,0.00013698,2]
[419181463,1775009442822,-500.0,0.00013698,2]
[419181464,1775009442831,-500.0,0.00013698,2]
[419181465,1775009442840,-500.0,0.00013698,2]
[419181466,1775009442850,-500.0,0.00013698,2]
[419181467,1775009442859,-500.0,0.00013698,2]
[419181468,1775009442868,-500.0,0.00013698,2]
[419181469,1775009442877,-500.0,0.00013698,2]
[419181470,1775009442886,-500.0,0.00013698,2]
[419181471,1775009442897,-500.0,0.00013698,2]
[419181472,1775009442908,-500.0,0.00013698,2]
[419181473,1775009442917,-500.0,0.00013698,2]
[419181474,1775009442926,-500.0,0.00013698,2]
[419181475,1775009442935,-500.0,0.00013698,2]
[419181476,1775009442944,-500.0,0.00013698,2]
[419181477,1775009442953,-500.0,0.00013698,2]
[419181478,1775009442962,-500.0,0.00013698,2]
[419181479,1775009442971,-500.0,0.00013698,2]
[419181480,1775009442980,-500.0,0.00013698,2]
[419181481,1775009442989,-500.0,0.00013698,2]
[419181482,1775009442998,-435.57567252,0.00013698,2]
[419181483,1775009443007,-500.0,0.00013698,2]
[419181484,1775009443017,-500.0,0.00013698,2]
[419181485,1775009443027,-500.0,0.00013698,2]
[419181486,1775009443036,-500.0,0.00013698,2]
[419181487,1775009443046,-500.0,0.00013698,2]
[419181488,1775009443056,-500.0,0.00013698,2]
[419181489,1775009443065,-500.0,0.00013698,2]
[419181490,1775009443075,-500.0,0.00013698,2]
[419181492,1775009443352,-500.0,0.00013698,2]
[419181493,1775009443382,-500.0,0.00013698,2]
[419181494,1775009443392,-500.0,0.00013698,2]
[419181495,1775009443402,-500.0,0.00013698,2]
[419181496,1775009443411,-500.0,0.00013698,2]
[419181497,1775009443421,-500.0,0.00013698,2]
[419181498,1775009443431,-500.0,0.00013698,2]
[419181500,1775009443441,-541.27886182,0.00013698,2]
[419181502,1775009443450,-500.0,0.00013698,2]
[419181504,1775009443461,-500.0,0.00013698,2]
[419181506,1775009443471,-500.0,0.00013698,2]
[419181508,1775009443481,-500.0,0.00013698,2]
[419181510,1775009443491,-500.0,0.00013698,2]
[419181511,1775009443501,-500.0,0.00013698,2]
[419181512,1775009443511,-500.0,0.00013698,2]
[419181513,1775009443521,-500.0,0.00013698,2]
[419181514,1775009443531,-500.0,0.00013698,2]
[419181515,1775009443540,-635.64813742,0.00013698,2]
[419181516,1775009443550,-200.0,0.00013699,2]
[419181517,1775009443560,-644.63,0.00013699,2]
[419181518,1775009443570,-479.2064232,0.00013699,2]
[419181519,1775009443580,-500.0,0.00013852,2]
[419181520,1775009443590,-500.0,0.00013852,2]
[419181521,1775009443599,-539.48062383,0.00013852,2]
[419181522,1775009443609,-500.0,0.00013852,2]
[419181523,1775009443619,-500.0,0.00013852,2]
[419181524,1775009443629,-500.0,0.00013852,2]
[419181525,1775009443639,-500.0,0.00013852,2]
[419181526,1775009443648,-516.30413292,0.00013852,2]
[419181527,1775009443658,-494.25,0.00013994,2]
[419181528,1775009443667,-318.9651,0.000141,17]
[419181529,1775009443677,-2000.0,0.00014101,2]
[419181530,1775009443687,-401.53330761,0.00014221,2]
[419181531,1775009443697,-163.12,0.00014282,2]
[419181532,1775009443706,-150.0,0.00014301,2]
[419181533,1775009443715,-150.0,0.00014301,2]
[419181534,1775009443725,-150.0,0.00014301,2]
[419181535,1775009443734,-150.0,0.00014301,2]
[419181536,1775009443744,-150.0,0.00014301,2]
[419181537,1775009443753,-4609.0,0.00014312,2]
[419181538,1775009443763,-644.63,0.00014384,2]
[419181539,1775009443772,-10401.32412408,0.0001439,2]
[419181540,1775009443781,-1684.04,0.00014504,2]
[419181541,1775009443790,-494.25,0.00014603,2]
[419181542,1775009443800,-229.19353963,0.000149,2]
[419181543,1775009443810,-2066.24561167,0.00015,2]
[419181544,1775009443820,-5000.83530931,0.00015,2]
[419181545,1775009443830,-4598.71749695,0.00015,7]
[419181546,1775009443840,-503.0,0.00015022,3]
[419181547,1775009443850,-160.0,0.00015064,2]
[419181548,1775009443860,-160.0,0.00015064,2]
[419181549,1775009443871,-644.63,0.00015068,2]
[419181550,1775009443880,-483.33064695,0.00015209,2]
[419181551,1775009443891,-494.25,0.00015211,2]
[419181552,1775009443902,-483.33064691,0.00015287,2]
[419181553,1775009443911,-4154.72,0.0001531,2]
[419181554,1775009443921,-150.99,0.0001531,2]
[419181555,1775009443931,-8458.19,0.0001531,2]
[419181556,1775009443941,-1563.07,0.0001531,2]
[419181557,1775009443951,-9999.99,0.0001531,2]
[419181558,1775009443961,-9999.99,0.0001531,2]
[419181559,1775009443970,-483.33064691,0.00015366,2]
[419181560,1775009443980,-500.56743432,0.00015373,2]
[419181561,1775009443989,-312.57026801,0.00015373,2]
[419181562,1775009443999,-483.33064691,0.00015444,2]
[419181563,1775009444009,-410.1668,0.000155,22]
[419181564,1775009444018,-483.33064691,0.00015523,2]
[419181565,1775009444027,-483.33064691,0.00015601,2]
[419181566,1775009444037,-733.14110028,0.00015634,2]
[419181567,1775009444046,-2000.0,0.00015667,2]
[419181568,1775009444055,-224.28659877,0.00015673,2]
[419181569,1775009444065,-483.33064691,0.0001568,2]
[419181570,1775009444074,-160.0,0.0001568,7]
[419181571,1775009444084,-204.87153,0.0001568,7]
[419181572,1775009444095,-249.743061,0.0001568,7]
[419181573,1775009444105,-234.944658,0.00015696,7]
[419181574,1775009444115,-160.0,0.00015696,7]
[419181575,1775009444126,-306.045734,0.00015696,7]
[419181576,1775009444135,-452.091468,0.00015696,7]
[419181577,1775009444145,-4960.0,0.00015743,2]
[419181578,1775009444155,-644.63,0.00015753,2]
[419181579,1775009444165,-483.33064691,0.00015758,2]
[419181580,1775009444175,-248.352,0.00015771,2]
[419181581,1775009444185,-1608.8889,0.00015771,2]
[419181582,1775009444194,-150.71162128,0.000158,2]
[419181583,1775009444203,-2500.0,0.000158,2]
[419181584,1775009444213,-5000.0,0.000158,2]
[419181585,1775009444222,-5894.35213356,0.000158,2]
[419181586,1775009444232,-6129.07395549,0.000158,2]
[419181587,1775009444241,-5894.35213352,0.00015813,2]
[419181588,1775009444251,-494.25,0.0001582,2]
[419181590,1775009444260,-6129.07395548,0.0001582,2]
[419181592,1775009444269,-5894.35213352,0.00015826,2]
[419181593,1775009444278,-483.33064691,0.00015837,2]
[419181594,1775009444288,-5894.35213352,0.00015838,2]
[419181595,1775009444297,-6129.07395548,0.0001584,2]
[419181596,1775009444307,-5894.35213352,0.00015851,2]
[419181597,1775009444316,-6129.07395548,0.0001586,2]
[419181598,1775009444326,-5894.35213352,0.00015864,2]
[419181599,1775009444335,-163.12,0.00015869,2]
[419181600,1775009444344,-5894.35213352,0.00015877,2]
[419181601,1775009444353,-6129.07395548,0.0001588,2]
[419181602,1775009444363,-5894.35213352,0.00015889,2]
[419181603,1775009444371,-500.0,0.0001589,2]
[419181604,1775009444381,-500.0,0.0001589,2]
[419181605,1775009444390,-500.0,0.0001589,2]
[419181606,1775009444399,-518.60923739,0.0001589,2]
[419181607,1775009444408,-184.33218889,0.0001589,2]
[419181608,1775009444418,-150.00000001,0.0001589,2]
[419181609,1775009444427,-150.00000001,0.0001589,2]
[419181610,1775009444436,-150.51523339,0.000159,2]
[419181611,1775009444445,-151.0,0.000159,2]
[419181612,1775009444455,-151.0,0.000159,2]
[419181613,1775009444464,-151.0,0.000159,2]
[419181614,1775009444473,-151.0,0.000159,2]
[419181615,1775009444482,-151.0,0.000159,2]
[419181616,1775009444492,-151.0,0.000159,2]
[419181617,1775009444501,-151.0,0.000159,2]
[419181618,1775009444510,-151.0,0.000159,2]
[419181619,1775009444519,-151.0,0.000159,2]
[419181620,1775009444529,-151.0,0.000159,2]
[419181621,1775009444538,-151.0,0.000159,2]
[419181622,1775009444547,-151.0,0.000159,2]
[419181623,1775009444556,-151.0,0.000159,2]
[419181624,1775009444565,-151.0,0.000159,2]
[419181625,1775009444575,-151.0,0.000159,2]
[419181626,1775009444584,-151.0,0.000159,2]
[419181627,1775009444593,-151.0,0.000159,2]
[419181628,1775009444603,-151.0,0.000159,2]
[419181629,1775009444612,-151.0,0.000159,2]
[419181630,1775009444621,-151.0,0.000159,2]
[419181631,1775009444631,-151.0,0.000159,2]
[419181632,1775009444641,-151.0,0.000159,2]
[419181633,1775009444651,-151.0,0.000159,2]
[419181634,1775009444671,-151.0,0.000159,2]
[419181635,1775009444681,-151.0,0.000159,2]
[419181636,1775009444691,-151.0,0.000159,2]
[419181637,1775009444702,-151.0,0.000159,2]
[419181638,1775009444711,-151.0,0.000159,2]
[419181639,1775009444721,-151.0,0.000159,2]
[419181640,1775009444730,-151.0,0.000159,2]
[419181641,1775009444739,-151.0,0.000159,2]
[419181642,1775009444749,-151.0,0.000159,2]
[419181643,1775009444759,-151.0,0.000159,2]
[419181644,1775009444768,-151.0,0.000159,2]
[419181645,1775009444777,-151.0,0.000159,2]
[419181646,1775009444787,-151.0,0.000159,2]
[419181647,1775009444796,-151.0,0.000159,2]
[419181648,1775009444805,-151.0,0.000159,2]
[419181649,1775009444815,-151.0,0.000159,2]
[419181650,1775009444825,-151.0,0.000159,2]
[419181651,1775009444834,-151.0,0.000159,2]
[419181652,1775009444843,-151.0,0.000159,2]
[419181653,1775009444853,-151.0,0.000159,2]
[419181654,1775009444863,-151.0,0.000159,2]
[419181655,1775009444872,-151.0,0.000159,2]
[419181656,1775009444881,-151.0,0.000159,2]
[419181657,1775009444890,-151.0,0.000159,2]
[419181658,1775009444899,-151.0,0.000159,2]
[419181659,1775009444909,-151.0,0.000159,2]
[419181660,1775009444918,-151.0,0.000159,2]
[419181661,1775009444927,-151.0,0.000159,2]
[419181662,1775009444936,-151.0,0.000159,2]
[419181663,1775009444946,-151.0,0.000159,2]
[419181664,1775009444956,-151.0,0.000159,2]
[419181665,1775009444966,-151.0,0.000159,2]
[419181666,1775009444975,-151.0,0.000159,2]
[419181667,1775009444984,-151.0,0.000159,2]
[419181668,1775009444994,-151.0,0.000159,2]
[419181669,1775009445003,-151.0,0.000159,2]
[419181670,1775009445013,-151.0,0.000159,2]
[419181671,1775009445022,-151.0,0.000159,2]
[419181672,1775009445033,-151.0,0.000159,2]
[419181673,1775009445044,-151.0,0.000159,2]
[419181674,1775009445054,-151.0,0.000159,2]
[419181675,1775009445063,-151.0,0.000159,2]
[419181676,1775009445072,-151.0,0.000159,2]
[419181677,1775009445081,-151.0,0.000159,2]
[419181678,1775009445091,-150.0,0.000159,2]
[419181679,1775009445100,-151.0,0.000159,2]
[419181680,1775009445109,-151.0,0.000159,2]
[419181681,1775009445118,-151.0,0.000159,2]
[419181682,1775009445127,-151.0,0.000159,2]
[419181683,1775009445137,-151.0,0.000159,2]
[419181684,1775009445146,-151.0,0.000159,2]
[419181685,1775009445155,-151.0,0.000159,2]
[419181686,1775009445170,-151.0,0.000159,2]
[419181687,1775009445180,-151.0,0.000159,2]
[419181688,1775009445189,-151.0,0.000159,2]
[419181689,1775009445200,-151.0,0.000159,2]
[419181690,1775009445209,-151.0,0.000159,2]
[419181691,1775009445218,-151.0,0.000159,2]
[419181692,1775009445227,-151.0,0.000159,2]
[419181693,1775009445238,-151.0,0.000159,2]
[419181694,1775009445248,-151.0,0.000159,2]
[419181695,1775009445259,-151.0,0.000159,2]
[419181696,1775009445270,-151.0,0.000159,2]
[419181697,1775009445279,-151.0,0.000159,2]
[419181698,1775009445289,-151.0,0.000159,2]
[419181699,1775009445299,-151.0,0.000159,2]
[419181700,1775009445308,-151.0,0.000159,2]
[419181701,1775009445318,-151.0,0.000159,2]
[419181702,1775009445327,-151.0,0.000159,2]
[419181703,1775009445337,-151.0,0.000159,2]
[419181704,1775009445346,-151.0,0.000159,2]
[419181705,1775009445356,-151.0,0.000159,2]
[419181706,1775009445366,-151.0,0.000159,2]
[419181707,1775009445375,-151.0,0.000159,2]
[419181708,1775009445384,-151.0,0.000159,2]
[419181709,1775009445393,-151.0,0.000159,2]
[419181710,1775009445403,-151.0,0.000159,2]
[419181711,1775009445413,-151.0,0.000159,2]
[419181712,1775009445423,-162.52028059,0.000159,2]
[419181713,1775009445433,-6129.07395548,0.000159,2]
[419181714,1775009445443,-5894.35213352,0.00015902,2]
[419181715,1775009445452,-483.33064691,0.00015915,2]
[419181716,1775009445462,-5894.35213352,0.00015915,2]
[419181717,1775009445471,-184.33218889,0.0001599,2]
[419181718,1775009445482,-666.0,0.00015999,2]
[419181719,1775009445491,-173.55164583,0.00015999,2]
[419181720,1775009445501,-3995281.37191073,0.00016,2]
[419181721,1775009445948,-271.96277641,0.00016,2]
[419181722,1775009445960,-144948.00000014,0.00016,2]
[419181723,1775009446617,-564.44336055,0.00016,2]
[419181724,1775009446658,-8881.58312198,0.00016,2]
[419181725,1775009446765,-62067.61436883,0.00016,2]
[419181983,1775009750639,-598.77,9.499e-05,2]
[419181984,1775009750663,-401.23,9.773e-05,2]
[419181985,1775009752511,-197.54,9.773e-05,2]
[419181986,1775009752532,-598.77,0.00010047,2]
[419181987,1775009752554,-203.69,0.00010321,2]
[419181989,1775009753472,-395.08,0.00010321,2]
[419181990,1775009753494,-604.92,0.00010448,2]
[419181991,1775009754888,-1000.0,0.00010448,2]
[419181992,1775009756156,-1000.0,0.00010448,2]
[419181993,1775009757406,-1000.0,0.00010448,2]
[419181994,1775009758428,-1000.0,0.00010448,2]
[419181995,1775009759609,-443.55902667,0.00010448,2]
[419181996,1775009759632,-300.0,0.00010448,2]
[419181997,1775009759655,-256.44097333,0.00010448,2]
[419181998,1775009762256,-943.55902667,0.00010448,2]
[419181999,1775009762277,-56.44097333,0.00010448,2]
[419182000,1775009762307,-181.55902667,0.00010448,2]
[419182001,1775009762328,-301.0,0.00010448,2]
[419182002,1775009762350,-517.44097333,0.00010449,2]
[419182003,1775009762397,-300.0,0.00010448,2]
[419182004,1775009762419,-700.0,0.00010449,2]
[419182005,1775009763857,-1000.0,0.00010449,2]
[419182006,1775009765277,-193.0,0.00010449,2]
[419182007,1775009765299,-598.77,0.00010595,2]
[419182008,1775009765324,-200.0,0.000107,3]
[419182009,1775009765347,-8.23,0.000108,3]
[419182010,1775009765751,-250.0,0.00010574,2]
[419182011,1775009765775,-391.77,0.000108,3]
[419182012,1775009765796,-253.30365106,0.00010812,2]
[419182013,1775009765818,-104.92634894,0.00010869,2]
[419182014,1775009767443,-493.85835233,0.00010869,2]
[419182015,1775009767467,-506.14164767,0.000109,3]
[419182016,1775009768539,-93.85835233,0.000109,3]
[419182017,1775009768561,-906.14164767,0.0001121,2]
[419182018,1775009769540,-1000.0,0.0001121,2]
[419182019,1775009770575,-1000.0,0.0001121,2]
[419182020,1775009771549,-1000.0,0.0001121,2]
[419182021,1775009773944,-1000.0,0.0001121,2]
[419182022,1775009780785,-1054.0,0.0001121,2]
[419182023,1775009801404,-314.0,0.0001121,2]
[419182024,1775009801427,-686.0,0.0001121,2]
[419182025,1775009803219,-1000.0,0.0001121,2]
[419182026,1775009804315,-1000.0,0.0001121,2]
[419182027,1775009805490,-458.33835233,0.0001121,2]
[419182028,1775009805513,-541.66164767,0.00011251,2]
[419182029,1775009808109,-58.33835233,0.00011251,2]
[419182030,1775009808129,-600.0,0.00011251,2]
[419182031,1775009808151,-341.66164767,0.00011251,2]
[419182032,1775009815372,-258.33835233,0.00011251,2]
[419182033,1775009815394,-193.66164767,0.00011251,2]
[419182034,1775009839525,-406.33835233,0.00011251,2]
[419182035,1775009839550,-641.19869595,0.00011251,2]
[419182036,1775009839574,-146.46295172,0.00011258,2]
[419182040,1775010548176,-288.0,9.628e-05,2]
[419182041,1775010548200,-250.0,9.628e-05,2]
[419182042,1775010548223,-363.6,9.628e-05,2]
[419182043,1775010548246,-321.4,9.706e-05,2]
[419182044,1775010563720,-1050.0,9.706e-05,2]
[419182045,1775010579402,-228.6,9.706e-05,2]
[419182046,1775010579424,-1306.4,9.833e-05,2]
[419182047,1775010593750,-341.87,9.255e-05,2]
[419182048,1775010593773,-283.0,9.255e-05,2]
[419182049,1775010593796,-546.02,9.833e-05,2]